bitfinex/quotes_ETHUSD_20230116
["timestamp","ask_amount","ask_price","bid_price","bid_amount"]
[1673832859058,8.43793269,1566.1,1566.0,0.88562678]
[1673832860263,8.43793269,1566.1,1566.0,1.88562678]
[1673832861260,16.80234269,1566.1,1566.0,1.88562678]
[1673832861629,15.30234269,1566.1,1566.0,1.88562678]
[1673832861894,0.64934796,1565.9,1565.6,1.0]
[1673832862260,1.40078176,1565.9,1565.6,1.0]
[1673832863362,7.78691176,1565.9,1565.6,1.0]
[1673832863941,14.17304176,1565.9,1565.6,1.0]
[1673832864160,1.7752,1565.8,1565.6,1.0]
[1673832864484,6.38691,1565.7,1565.6,1.0]
[1673832864679,0.4792,1565.8,1565.6,1.1]
[1673832864897,0.64934796,1565.9,1565.6,1.0]
[1673832865687,13.42169796,1565.9,1565.6,1.0]
[1673832865992,13.92169796,1565.9,1565.6,1.0]
[1673832866359,12.42169796,1565.9,1565.6,1.0]
[1673832866817,0.4792,1565.8,1565.6,1.0]
[1673832867145,6.03544796,1565.9,1565.6,1.0]
[1673832868191,7.81939768,1566.0,1565.6,1.1]
[1673832868409,7.46479558,1566.1,1565.6,1.1]
[1673832868575,7.46479558,1566.1,1565.6,8.78227]
[1673832868785,1.07920558,1566.1,1565.6,15.16959]
[1673832869028,1.07920558,1566.1,1565.7,7.903759]
[1673832869200,1.07920558,1566.1,1566.0,1.0]
[1673832869414,2.66352304,1566.1,1566.0,1.0]
[1673832870101,0.1246179,1566.1,1566.0,1.0]
[1673832870822,0.95458768,1566.2,1566.1,0.8753821]
[1673832870979,2.53872026,1566.2,1566.1,1.06292031]
[1673832871189,2.48872026,1566.2,1566.1,1.06292031]
[1673832871397,0.90458768,1566.2,1566.1,1.06292031]
[1673832871819,2.48872026,1566.2,1566.1,1.06292031]
[1673832872235,0.90458768,1566.2,1566.1,1.06292031]
[1673832873097,0.90458768,1566.2,1566.1,0.8753821]
[1673832873726,3.57639576,1566.4,1566.1,2.1793821]
[1673832873940,0.10535121,1566.4,1566.1,2.1793821]
[1673832874135,0.10535121,1566.4,1566.1,5.1793821]
[1673832874374,0.10535121,1566.4,1566.2,0.51793821]
[1673832874869,1.52191706,1566.4,1566.1,2.1793821]
[1673832875242,1.41656585,1566.3,1566.1,3.8753821]
[1673832875410,3.57917524,1566.4,1566.1,3.8753821]
[1673832875411,3.41179283,1566.4,1566.1,3.8753821]
[1673832875616,1.58402532,1566.3,1566.1,3.8753821]
[1673832876479,1.52191706,1566.4,1566.1,10.2606321]
[1673832876700,0.10535121,1566.4,1566.2,1.02606321]
[1673832876911,1.52191706,1566.4,1566.2,1.02606321]
[1673832877236,1.58398789,1566.3,1566.1,3.8753821]
[1673832878060,1.58398789,1566.3,1566.1,5.3753821]
[1673832878233,1.52191706,1566.4,1566.1,5.3753821]
[1673832878445,0.10535121,1566.4,1566.1,17.8959221]
[1673832878657,0.10535121,1566.4,1566.2,1.302]
[1673832879091,1.52191706,1566.4,1566.2,1.302]
[1673832879519,7.90604706,1566.4,1566.2,1.302]
[1673832879740,8.89774368,1566.4,1566.1,3.6253821]
[1673832880119,7.90604706,1566.4,1566.1,3.6253821]
[1673832880747,0.10535121,1566.4,1566.2,1.304]
[1673832880962,0.12104341,1566.5,1566.4,0.89464879]
[1673832881172,0.07104341,1566.5,1566.4,0.89464879]
[1673832881420,7.74697779,1566.5,1566.4,0.89464879]
[1673832881748,8.20900776,1566.5,1566.4,0.89464879]
[1673832882333,14.59265776,1566.5,1566.4,0.89464879]
[1673832882976,14.25490926,1566.5,1566.4,0.89464879]
[1673832883340,14.20916058,1566.5,1566.4,0.89464879]
[1673832883642,12.79259473,1566.5,1566.4,0.89464879]
[1673832884336,14.20916058,1566.5,1566.4,0.89464879]
[1673832885173,12.79259473,1566.5,1566.4,0.89464879]
[1673832885688,5.45469341,1566.5,1566.4,0.89464879]
[1673832885894,9.39199002,1566.6,1566.4,0.98411367]
[1673832887492,0.95425132,1566.6,1566.4,0.98411367]
[1673832887842,31.25190328,1566.7,1566.4,0.98411367]
[1673832888210,32.66846913,1566.7,1566.4,0.98411367]
[1673832889108,32.66846913,1566.7,1566.4,0.89464879]
[1673832889277,31.25190328,1566.7,1566.4,0.89464879]
[1673832889809,22.91825132,1566.7,1566.4,0.89464879]
[1673832890028,24.86828233,1566.7,1566.4,0.89464879]
[1673832890370,21.964,1566.7,1566.4,0.89464879]
[1673832890735,22.91825132,1566.7,1566.4,0.89464879]
[1673832890978,23.39715132,1566.7,1566.4,0.89464879]
[1673832891813,28.34713,1566.7,1566.4,0.89464879]
[1673832892240,21.964,1566.7,1566.4,0.89464879]
[1673832895625,28.34689,1566.7,1566.4,0.89464879]
[1673832895839,6.98327378,1566.8,1566.4,0.89464879]
[1673832895998,0.60059378,1566.8,1566.4,2.19164879]
[1673832896641,0.60059378,1566.8,1566.4,8.57562879]
[1673832898097,0.60059378,1566.8,1566.4,2.19164879]
[1673832898311,6.98319378,1566.8,1566.4,3.17965267]
[1673832898674,0.12169378,1566.8,1566.4,3.17965267]
[1673832899036,6.50416378,1566.8,1566.4,3.17965267]
[1673832899728,0.12169378,1566.8,1566.6,1.302]
[1673832899877,0.12169378,1566.8,1566.7,1.304]
[1673832900094,0.12169378,1566.8,1566.7,2.841225]
[1673832901455,0.12169378,1566.8,1566.7,9.224065]
[1673832901826,0.12169378,1566.8,1566.7,10.724065]
[1673832902194,0.12169378,1566.8,1566.7,21.634905]
[1673832902449,9.378e-05,1566.8,1566.7,21.634905]
[1673832902613,0.12264822,1566.9,1566.8,1.5]
[1673832902828,0.12264822,1566.9,1566.8,22.4901105]
[1673832903771,0.12548415,1567.1,1566.9,1.5]
[1673832904045,0.07548415,1567.1,1567.0,20.67886]
[1673832904429,0.07548415,1567.1,1567.0,23.67886]
[1673832904642,0.07548415,1567.1,1567.0,24.97686]
[1673832904975,0.07548415,1567.1,1567.0,26.99942646]
[1673832905195,0.12827928,1567.3,1567.1,1.5]
[1673832905358,0.12827928,1567.3,1567.2,2.593]
[1673832905572,0.71927928,1567.3,1567.2,1.298]
[1673832905902,0.12827928,1567.3,1567.1,4.3]
[1673832906116,0.12827928,1567.3,1567.1,2.23225665]
[1673832906346,0.12827928,1567.3,1567.1,1.3]
[1673832906500,0.12827928,1567.3,1566.9,9.166]
[1673832906501,6.50870928,1567.3,1566.9,9.166]
[1673832906705,6.98750928,1567.3,1566.9,1.298]
[1673832906934,6.98750928,1567.3,1566.9,4.298]
[1673832907861,13.36793928,1567.3,1566.9,4.298]
[1673832908011,13.36793928,1567.3,1566.9,4.95914905]
[1673832908180,6.98750928,1567.3,1566.9,4.95914905]
[1673832908661,0.60707928,1567.3,1566.9,11.34107905]
[1673832908974,0.60707928,1567.3,1567.1,1.304]
[1673832910638,6.50878928,1567.3,1567.1,1.304]
[1673832912493,14.81705597,1567.3,1566.7,10.7793]
[1673832912739,14.81705597,1567.3,1566.7,9.172]
[1673832912740,12.76268,1567.1,1566.7,9.172]
[1673832912961,12.76268,1567.1,1566.7,1.304]
[1673832913816,12.76268,1567.1,1566.5,4.71494311]
[1673832913817,3.30644162,1566.8,1566.5,4.71494311]
[1673832914032,13.90123392,1567.1,1566.7,1.304]
[1673832914246,1.41656585,1566.8,1566.7,1.304]
[1673832914409,13.90123392,1567.1,1566.7,4.304]
[1673832914614,0.4788,1567.2,1566.8,1.304]
[1673832914874,2.8315343,1567.1,1566.9,1.304]
[1673832915093,0.4788,1567.2,1566.9,1.304]
[1673832915454,0.60707928,1567.3,1566.9,7.68599]
[1673832916251,0.12827928,1567.3,1566.9,7.68599]
[1673832917030,0.12827928,1567.3,1566.9,2.710813]
[1673832917448,0.12827928,1567.3,1566.9,4.210813]
[1673832917655,0.12827928,1567.3,1566.9,2.710813]
[1673832917978,0.12827928,1567.3,1567.1,1.454]
[1673832918446,12.88927928,1567.3,1566.7,17.54997]
[1673832918771,1.28892793,1567.2,1566.8,0.23]
[1673832918923,7.66973793,1567.2,1566.9,1.457]
[1673832919338,14.05054793,1567.2,1566.8,1.451]
[1673832919549,1.9788,1567.1,1566.4,31.20464879]
[1673832919768,19.14618,1566.9,1566.4,0.89464879]
[1673832920123,8.776098,1566.8,1566.4,0.89464879]
[1673832921128,7.88144921,1566.8,1566.3,3.0]
[1673832921346,0.4789,1566.8,1566.4,7.83405]
[1673832921601,0.4789,1566.8,1566.4,14.21811]
[1673832921923,0.4789,1566.9,1566.7,1.462]
[1673832922235,6.86031,1567.1,1566.6,4.462]
[1673832922395,28.57901,1567.1,1566.8,1.462]
[1673832922599,11.08949673,1567.1,1566.8,1.462]
[1673832922815,6.86031,1567.1,1566.8,1.462]
[1673832925968,0.4788,1567.2,1566.9,1.451]
[1673832926194,23.27672658,1567.3,1567.0,1.456]
[1673832926540,22.79792658,1567.3,1567.0,1.456]
[1673832926715,30.79138847,1567.3,1567.0,1.456]
[1673832927150,29.17841658,1567.3,1567.0,1.456]
[1673832927333,32.21837585,1567.3,1567.0,1.456]
[1673832927755,29.17841658,1567.3,1567.0,1.456]
[1673832927958,29.17841658,1567.3,1567.0,2.1967]
[1673832928211,30.16669382,1567.3,1567.0,2.1967]
[1673832928429,30.16669382,1567.3,1567.0,0.7407]
[1673832928756,8.94509664,1567.3,1567.0,0.7407]
[1673832929066,8.75785824,1567.3,1567.0,0.7407]
[1673832929226,8.75785824,1567.3,1566.9,3.0]
[1673832929227,6.38121,1567.1,1566.9,3.0]
[1673832929427,6.38121,1567.1,1566.8,1.462]
[1673832929632,7.3314373,1567.3,1566.8,7.84442]
[1673832929847,0.9509473,1567.3,1566.9,2.465442]
[1673832930072,15.07604174,1567.3,1566.9,2.235442]
[1673832930308,15.07604174,1567.3,1566.9,1.451]
[1673832930309,2.31512174,1567.2,1566.9,1.451]
[1673832930526,6.38102,1567.2,1566.9,1.451]
[1673832930737,7.3319673,1567.2,1566.9,1.451]
[1673832931008,2.56460664,1567.3,1566.9,7.83302]
[1673832931355,3.92877,1567.3,1566.9,7.83302]
[1673832931566,2.56600587,1567.3,1566.9,7.83302]
[1673832931758,3.93074092,1567.3,1566.9,7.83302]
[1673832931950,3.93074092,1567.3,1567.0,0.783302]
[1673832932162,3.93074092,1567.3,1567.0,8.626802]
[1673832932163,0.9509473,1567.3,1567.0,8.626802]
[1673832932375,22.2846176,1567.4,1567.1,9.34305]
[1673832932625,0.0084176,1567.4,1567.2,1.454]
[1673832932836,0.0084176,1567.4,1567.2,14.21522]
[1673832933051,0.0084176,1567.4,1567.3,1.421522]
[1673832933261,0.0084176,1567.4,1567.3,7.801912]
[1673832934529,0.0084176,1567.4,1567.3,8.031912]
[1673832935436,0.0084176,1567.4,1567.3,11.031912]
[1673832936255,0.0084176,1567.4,1567.3,4.421522]
[1673832936489,0.0084176,1567.4,1567.3,3.0]
[1673832936806,0.0084176,1567.4,1567.2,4.47040249]
[1673832937373,0.0084176,1567.4,1567.2,12.35119249]
[1673832937586,0.0084176,1567.4,1567.3,0.23]
[1673832937894,0.0084176,1567.4,1567.3,6.61039]
[1673832938042,0.0084176,1567.4,1567.3,9.14462825]
[1673832938728,0.0084176,1567.4,1567.3,18.52501825]
[1673832939133,0.0084176,1567.4,1567.3,12.14462825]
[1673832939327,0.0084176,1567.4,1567.3,19.98201825]
[1673832940054,0.0084176,1567.4,1567.3,13.60162825]
[1673832940685,0.0084176,1567.4,1567.3,3.0]
[1673832941270,0.0084176,1567.4,1567.3,18.71478]
[1673832941617,0.0084176,1567.4,1567.3,17.21478]
[1673832941826,0.0084176,1567.4,1567.3,11.06439]
[1673832942313,0.0084176,1567.4,1567.3,18.94478]
[1673832942615,0.0084176,1567.4,1567.3,21.47893925]
[1673832943436,0.0084176,1567.4,1567.3,19.97893925]
[1673832943657,0.0084176,1567.4,1567.3,3.0]
[1673832943658,0.5994176,1567.4,1567.3,3.0]
[1673832943983,0.5994176,1567.4,1567.1,0.55073572]
[1673832943984,7.4581076,1567.4,1567.1,0.55073572]
[1673832944370,8.4090549,1567.4,1567.1,0.55073572]
[1673832944575,1.0781176,1567.4,1567.1,0.55073572]
[1673832944788,0.4871176,1567.4,1567.1,0.55073572]
[1673832945014,0.31646824,1567.4,1567.1,0.55073572]
[1673832945238,0.9509473,1567.3,1567.1,0.55073572]
[1673832945455,12.7616,1567.2,1567.1,0.55073572]
[1673832945773,16.84866523,1567.2,1567.1,0.55073572]
[1673832946149,18.34866523,1567.2,1567.1,0.55073572]
[1673832946375,0.14723569,1567.0,1566.4,8.2943]
[1673832946593,0.4789,1566.9,1566.4,8.2943]
[1673832946829,0.4789,1566.9,1566.4,9.7503]
[1673832947566,6.86095,1566.9,1566.4,8.2943]
[1673832947962,6.86095,1566.9,1566.3,7.83815]
[1673832948133,8.44016693,1566.9,1566.3,11.86590814]
[1673832948342,7.96126693,1566.9,1566.4,3.0]
[1673832948661,7.96126693,1566.9,1566.4,12.34595]
[1673832949026,0.62603569,1567.0,1566.5,7.84534]
[1673832949195,0.62603569,1567.0,1566.6,3.0]
[1673832949565,13.38927569,1567.0,1566.6,3.0]
[1673832949726,0.62603569,1567.0,1566.6,3.0]
[1673832949935,0.62603569,1567.0,1566.6,6.38304]
[1673832950376,0.62603569,1567.0,1566.6,8.105881]
[1673832950721,0.4788,1567.0,1566.6,14.489131]
[1673832950864,23.56016458,1567.1,1566.6,15.989131]
[1673832951075,23.56016458,1567.1,1566.8,1.5]
[1673832951329,1.95976458,1567.1,1566.7,7.84474]
[1673832951549,1.95976458,1567.1,1566.7,10.2281271]
[1673832951730,8.34099458,1567.1,1566.6,6.38304]
[1673832951927,8.34099458,1567.1,1566.5,18.92213]
[1673832951928,14.72222458,1567.1,1566.5,18.92213]
[1673832952283,15.67554823,1567.1,1566.6,0.23]
[1673832952863,9.29431823,1567.1,1566.6,6.61323]
[1673832953175,9.29431823,1567.1,1566.6,17.688369]
[1673832953332,9.29431823,1567.1,1566.6,16.188369]
[1673832953709,10.24707753,1567.1,1566.6,9.805119]
[1673832954047,11.71372639,1567.1,1566.6,6.61323]
[1673832954370,11.71372639,1567.1,1566.6,0.23]
[1673832954713,11.71374561,1567.1,1566.6,0.23]
[1673832954921,1.17137456,1567.0,1566.6,0.23]
[1673832955292,5.33251561,1567.1,1566.6,0.23]
[1673832955614,3.90095631,1567.1,1566.6,14.45842]
[1673832955828,3.90095631,1567.1,1566.7,4.457]
[1673832956062,3.90095631,1567.1,1566.8,6.61235]
[1673832956254,3.90095631,1567.1,1566.9,1.456]
[1673832956465,3.90095631,1567.1,1567.0,7.22322]
[1673832956658,3.90095631,1567.1,1567.0,8.67722]
[1673832957066,3.90095631,1567.1,1567.0,18.05884]
[1673832957333,3.90095631,1567.1,1567.0,18.28884]
[1673832957720,3.90095631,1567.1,1567.0,18.34595]
[1673832958192,3.90095631,1567.1,1567.0,11.96433]
[1673832958371,3.90095631,1567.1,1567.0,11.81873]
[1673832958540,3.90095631,1567.1,1567.0,5.43711]
[1673832958753,3.90095631,1567.1,1567.0,3.28711]
[1673832959038,3.90095631,1567.1,1567.0,3.0]
[1673832960133,3.90095631,1567.1,1567.0,18.95524]
[1673832960377,3.90095631,1567.1,1567.0,22.127118]
[1673832960785,3.90095631,1567.1,1567.0,20.627118]
[1673832961851,3.90095631,1567.1,1567.0,4.692]
[1673832962066,23.01026856,1567.4,1567.0,3.0]
[1673832962480,1.12854217,1567.3,1567.0,3.0]
[1673832964910,1.12854217,1567.3,1567.0,9.38155]
[1673832966136,1.12854217,1567.3,1567.0,3.0]
[1673832966350,3.32686714,1567.3,1567.0,3.0]
[1673832967911,3.32686714,1567.3,1566.7,2.467]
[1673832967912,14.22467,1567.1,1566.6,30.31]
[1673832968143,14.22467,1567.1,1566.5,1.34555626]
[1673832968144,9.41288801,1567.0,1566.5,1.34555626]
[1673832968362,7.3234988,1566.9,1566.5,1.34555626]
[1673832968525,0.4789,1566.8,1566.5,1.34555626]
[1673832969735,6.86139,1566.8,1566.5,1.34555626]
[1673832970048,1.46,1566.6,1566.5,5.626e-05]
[1673832970237,20.75575,1566.6,1566.5,5.626e-05]
[1673832970422,21.23475,1566.6,1566.5,5.626e-05]
[1673832973588,20.75575,1566.6,1566.5,5.626e-05]
[1673832974147,19.75475,1566.6,1566.5,5.626e-05]
[1673832974934,13.3715,1566.6,1566.5,5.626e-05]
[1673832975196,7.84491,1566.7,1566.5,5.626e-05]
[1673832975359,6.38291,1566.7,1566.5,5.626e-05]
[1673832975799,14.74472,1566.7,1566.5,5.626e-05]
[1673832976013,14.26582,1566.7,1566.4,0.0084176]
[1673832976234,1.931,1566.6,1566.4,0.0084176]
[1673832976405,6.57675,1566.5,1566.4,0.0084176]
[1673832977830,15.9204,1566.5,1566.4,0.0084176]
[1673832977997,16.3994,1566.5,1566.4,0.0084176]
[1673832979714,14.8994,1566.5,1566.4,0.0084176]
[1673832979930,8.32265,1566.5,1566.4,0.0084176]
[1673832980154,6.38365,1566.5,1566.4,0.0084176]
[1673832980296,8.31934,1566.6,1566.4,0.0084176]
[1673832980660,14.70291,1566.6,1566.4,0.0084176]
[1673832980876,16.20291,1566.6,1566.4,0.0084176]
[1673832981028,14.387591,1566.5,1566.4,0.0084176]
[1673832981239,15.845591,1566.5,1566.4,0.0084176]
[1673832982303,17.345591,1566.5,1566.4,0.0084176]
[1673832982921,15.845591,1566.5,1566.4,0.0084176]
[1673832983342,9.461941,1566.5,1566.4,0.0084176]
[1673832984244,15.845591,1566.5,1566.4,0.0084176]
[1673832984836,17.824591,1566.5,1566.4,0.0084176]
[1673832986032,16.324591,1566.5,1566.4,0.0084176]
[1673832986720,8.482941,1566.5,1566.4,0.0084176]
[1673832986918,6.86265,1566.5,1566.4,0.0084176]
[1673832987149,6.38365,1566.5,1566.4,0.0084176]
[1673832987343,8.31534,1566.6,1566.4,0.0084176]
[1673832987587,0.479,1566.6,1566.4,0.0084176]
[1673832987796,6.38314,1566.7,1566.4,0.0084176]
[1673832988177,8.31945,1566.8,1566.4,0.0084176]
[1673832988399,6.86145,1566.8,1566.4,0.0084176]
[1673832988614,6.86145,1566.8,1566.4,0.65558668]
[1673832989275,13.244,1566.8,1566.4,0.65558668]
[1673832989498,13.244,1566.8,1566.4,0.0084176]
[1673832989708,14.744,1566.8,1566.4,0.0084176]
[1673832990090,16.202,1566.8,1566.4,0.0084176]
[1673832990712,1.5,1566.7,1566.4,0.0084176]
[1673832990925,12.7665,1566.6,1566.4,0.0084176]
[1673832991148,1.27665,1566.5,1566.4,0.0084176]
[1673832991468,14.04395,1566.5,1566.4,0.0084176]
[1673832992719,15.54395,1566.5,1566.4,0.0084176]
[1673832993466,13.0439492,1566.5,1566.4,0.0084176]
[1673832993690,13.24576,1566.6,1566.4,0.0084176]
[1673832994082,6.86225,1566.6,1566.4,0.0084176]
[1673832994721,16.20576,1566.6,1566.4,0.0084176]
[1673832995603,1.5,1566.5,1566.4,0.0084176]
[1673832995815,14.2673,1566.5,1566.4,0.0084176]
[1673832996006,18.92738553,1566.5,1566.4,0.0084176]
[1673832996350,19.40638553,1566.5,1566.4,0.0084176]
[1673832996552,1.5,1566.4,1566.3,0.07881322]
[1673832996859,14.70912,1566.4,1566.3,0.07881322]
[1673832998133,15.6605761,1566.4,1566.3,0.07881322]
[1673832998487,2.95,1566.3,1566.2,0.06224606]
[1673832998663,17.64904,1566.3,1566.2,0.06224606]
[1673832998850,19.74336849,1566.3,1566.2,0.06224606]
[1673832999235,17.64904,1566.3,1566.2,0.06224606]
[1673832999457,23.36807608,1566.3,1566.2,0.06224606]
[1673832999874,19.77374285,1566.3,1566.2,0.06224606]
[1673833000094,16.87274285,1566.3,1566.2,0.06224606]
[1673833000490,10.48827285,1566.3,1566.2,0.06224606]
[1673833001335,10.00917285,1566.3,1566.2,0.06224606]
[1673833001575,16.39364285,1566.3,1566.2,0.06224606]
[1673833001796,16.87274285,1566.3,1566.2,0.06224606]
[1673833002223,16.39364285,1566.3,1566.2,0.06224606]
[1673833003229,10.00917285,1566.3,1566.2,0.06224606]
[1673833004542,6.38447,1566.3,1566.2,0.75824606]
[1673833004761,20.6747,1566.4,1566.2,0.75824606]
[1673833005119,22.4845761,1566.6,1566.2,0.75824606]
[1673833005338,13.7182761,1566.6,1566.2,0.75824606]
[1673833005579,15.16730075,1566.6,1566.2,0.75824606]
[1673833005793,15.64630075,1566.6,1566.2,0.84231027]
[1673833005983,15.64646318,1566.6,1566.2,0.84231027]
[1673833006192,14.1972761,1566.6,1566.2,0.84231027]
[1673833006409,2.09704315,1566.5,1566.2,0.84231027]
[1673833006647,0.9514561,1566.5,1566.2,0.84231027]
[1673833006956,2.09705923,1566.5,1566.3,0.08423103]
[1673833007118,2.09705923,1566.5,1566.2,0.06224606]
[1673833007582,8.48078923,1566.5,1566.2,0.06224606]
[1673833007903,7.3351861,1566.5,1566.2,0.06224606]
[1673833008289,14.14433025,1566.5,1566.2,0.06224606]
[1673833008500,2.10064197,1566.4,1566.2,0.06224606]
[1673833008827,8.48485197,1566.4,1566.2,0.06224606]
[1673833009062,7.33911009,1566.4,1566.2,0.06224606]
[1673833009422,0.95490009,1566.4,1566.2,0.06224606]
[1673833009637,9.74078837,1566.6,1566.2,0.06224606]
[1673833009842,1.1071114,1566.5,1566.2,0.06224606]
[1673833010058,1.1071114,1566.5,1566.2,0.71523227]
[1673833012106,1.1071114,1566.5,1566.2,0.06224606]
[1673833012267,15.30166555,1566.5,1566.2,0.06224606]
[1673833012486,2.6071114,1566.4,1566.2,0.06224606]
[1673833012691,12.76852,1566.4,1566.2,0.06224606]
[1673833013264,14.26852,1566.4,1566.2,0.06224606]
[1673833013420,15.21462423,1566.4,1566.2,0.06224606]
[1673833013843,16.64180838,1566.4,1566.2,0.06224606]
[1673833014086,14.21462423,1566.4,1566.2,0.06224606]
[1673833014701,0.479,1566.5,1566.2,0.06224606]
[1673833014940,9.68314643,1566.6,1566.2,0.06224606]
[1673833015161,1.06809734,1566.5,1566.2,0.06224606]
[1673833015796,9.68314643,1566.6,1566.2,0.06224606]
[1673833016948,8.25596228,1566.6,1566.2,0.06224606]
[1673833017159,7.77696228,1566.6,1566.2,0.86092827]
[1673833017472,6.38332,1566.6,1566.2,0.86092827]
[1673833017685,7.77704508,1566.6,1566.2,0.86092827]
[1673833018494,8.73253223,1566.6,1566.2,0.86092827]
[1673833018942,16.54324638,1566.6,1566.2,0.86092827]
[1673833019098,8.40743678,1566.5,1566.2,0.06224606]
[1673833019310,3.52372571,1566.4,1566.2,0.06224606]
[1673833019565,6.38447,1566.3,1566.2,0.06224606]
[1673833019754,8.40790571,1566.4,1566.2,0.06224606]
[1673833019968,7.4524393,1566.4,1566.2,0.06224606]
[1673833020600,1.0682593,1566.4,1566.2,0.06224606]
[1673833022360,1.27063187,1566.4,1566.2,0.06224606]
[1673833023686,8.61021828,1566.4,1566.2,0.06224606]
[1673833023897,7.65475187,1566.4,1566.2,0.06224606]
[1673833024115,8.61021828,1566.4,1566.2,0.06224606]
[1673833024268,9.08921828,1566.4,1566.2,0.06224606]
[1673833024480,0.90892183,1566.3,1566.2,0.06224606]
[1673833025558,0.90892183,1566.3,1566.1,0.08239601]
[1673833025559,17.12864671,1566.3,1566.1,0.08239601]
[1673833025847,18.2204398,1566.2,1566.1,0.08239601]
[1673833026076,18.2204398,1566.2,1565.9,1.03794107]
[1673833026077,16.7204398,1566.2,1565.9,1.03794107]
[1673833026434,3.30856812,1566.2,1565.9,1.03794107]
[1673833026644,2.84802183,1566.3,1565.9,1.03794107]
[1673833026961,1.0682593,1566.4,1566.1,1.456]
[1673833027321,1.0682593,1566.4,1566.1,7.84118]
[1673833027899,1.0682593,1566.4,1566.1,1.456]
[1673833028477,8.3303,1566.5,1566.1,7.84126]
[1673833028919,6.86226,1566.6,1566.1,7.84126]
[1673833029180,6.86226,1566.6,1566.2,1.456]
[1673833029181,0.479,1566.6,1566.2,1.456]
[1673833029373,0.479,1566.6,1566.3,7.88439]
[1673833029710,23.08551902,1566.7,1566.3,14.26886]
[1673833030531,3.74242335,1566.7,1566.3,14.23086]
[1673833030713,2.78709251,1566.7,1566.4,5.873086]
[1673833030923,2.78709251,1566.7,1566.5,6.38365]
[1673833031338,2.78709251,1566.7,1566.4,12.256976]
[1673833031601,3.74242335,1566.7,1566.4,4.423086]
[1673833031922,2.78709251,1566.7,1566.3,15.34745988]
[1673833032234,2.78709251,1566.7,1566.4,1.462]
[1673833032423,2.78709251,1566.7,1566.5,6.38365]
[1673833033999,2.78709251,1566.7,1566.5,12.7673]
[1673833034209,2.78709251,1566.7,1566.6,2.962]
[1673833034431,2.78709251,1566.7,1566.6,17.30143]
[1673833034643,2.78709251,1566.7,1566.6,20.30143]
[1673833035236,2.78709251,1566.7,1566.6,21.76343]
[1673833035447,2.78709251,1566.7,1566.6,23.11179108]
[1673833037174,2.78709251,1566.7,1566.6,24.51738498]
[1673833037755,2.78709251,1566.7,1566.6,24.53448498]
[1673833038658,0.69849247,1567.3,1566.6,22.03356]
[1673833038955,0.95298155,1567.2,1566.8,6.38225]
[1673833039111,1.09596479,1567.2,1566.8,6.38225]
[1673833040193,1.09596479,1567.2,1566.7,11.815926]
[1673833042481,1.09596479,1567.2,1566.7,18.198766]
[1673833043007,0.14298324,1567.2,1566.7,18.198766]
[1673833043246,0.14298324,1567.2,1566.8,1.8198766]
[1673833043468,0.14298324,1567.2,1566.9,12.76388]
[1673833044832,0.14298324,1567.2,1567.1,22.05663]
[1673833045002,0.14298324,1567.2,1567.1,25.28663]
[1673833046319,0.14298324,1567.2,1567.1,25.30666]
[1673833046489,0.14298324,1567.2,1567.1,28.46643283]
[1673833047212,0.13946285,1567.2,1567.1,29.00381482]
[1673833048367,0.13946285,1567.2,1567.1,26.81093283]
[1673833048572,0.13946285,1567.2,1567.1,26.85913283]
[1673833049260,0.13946285,1567.2,1567.1,11.00298283]
[1673833049420,0.13946285,1567.2,1567.1,7.84321]
[1673833050204,0.13946285,1567.2,1567.1,14.22442]
[1673833050618,0.13946285,1567.2,1567.1,17.22442]
[1673833050844,0.13946285,1567.2,1567.1,17.57722]
[1673833051881,0.13946285,1567.2,1567.1,17.45442]
[1673833052100,0.13946285,1567.2,1567.1,20.53106834]
[1673833052464,0.13946285,1567.2,1567.1,20.35506834]
[1673833053518,0.13946285,1567.2,1567.1,17.04842]
[1673833053833,0.12194547,1567.4,1567.1,17.04842]
[1673833054687,0.12194547,1567.4,1567.1,3.0]
[1673833054899,0.60064547,1567.4,1567.0,0.39029881]
[1673833055144,3.45784413,1567.4,1567.0,0.39029881]
[1673833055332,16.21788413,1567.4,1567.0,0.39029881]
[1673833055546,14.71788413,1567.4,1567.0,0.39029881]
[1673833056090,7.69149495,1567.4,1567.0,0.39029881]
[1673833056457,14.07148495,1567.4,1567.0,0.39029881]
[1673833056664,1.40714849,1567.3,1567.0,0.39029881]
[1673833056913,6.8596,1567.2,1567.0,0.39029881]
[1673833057315,0.4788,1567.2,1567.0,0.39029881]
[1673833058874,0.60064547,1567.4,1567.0,0.39029881]
[1673833059093,0.60064547,1567.4,1567.0,14.44444881]
[1673833059345,0.60064547,1567.4,1567.0,16.65688869]
[1673833060564,0.60064547,1567.4,1567.0,18.15688869]
[1673833060833,0.12194547,1567.4,1567.0,18.15688869]
[1673833061139,0.12194547,1567.4,1567.2,6.3808]
[1673833063092,0.12194547,1567.4,1567.1,15.99196]
[1673833063879,0.12194547,1567.4,1567.1,9.61098]
[1673833065296,0.12194547,1567.4,1567.1,3.0]
[1673833065505,2.40242795,1567.4,1567.1,3.0]
[1673833066272,0.12194547,1567.4,1567.1,3.0]
[1673833066993,22.68287928,1567.5,1567.1,3.0]
[1673833067664,22.68287928,1567.5,1567.1,15.76231]
[1673833067817,22.68287928,1567.5,1567.1,17.26231]
[1673833068023,22.68287928,1567.5,1567.1,17.31436]
[1673833068282,22.68287928,1567.5,1567.1,3.0]
[1673833068495,35.44225928,1567.5,1567.1,3.0]
[1673833068710,35.44225928,1567.5,1567.0,0.39029881]
[1673833069612,0.4787,1567.4,1567.0,0.39029881]
[1673833069823,0.4787,1567.4,1567.0,6.77189881]
[1673833070083,3.43282693,1567.4,1567.0,6.77189881]
[1673833070290,3.43282693,1567.4,1567.0,13.15351881]
[1673833070291,0.4787,1567.4,1567.0,13.15351881]
[1673833071387,0.4787,1567.4,1567.0,14.65351881]
[1673833071860,0.4787,1567.4,1567.1,1.5]
[1673833072030,22.63527928,1567.5,1567.2,12.7616]
[1673833072240,22.15657928,1567.5,1567.2,12.7616]
[1673833072597,0.54156694,1567.6,1567.2,14.825862]
[1673833072809,0.06286694,1567.6,1567.2,8.445062]
[1673833072959,0.06286694,1567.6,1567.1,6.85982]
[1673833073330,6.92081694,1567.6,1567.1,6.85982]
[1673833073489,6.92081694,1567.6,1567.0,6.77164881]
[1673833073697,13.30006694,1567.6,1567.1,3.0]
[1673833074488,6.92081694,1567.6,1567.1,9.38115]